fUST/lending_fUST_20240831
["ID","MTS","AMOUNT","RATE_DAILY","PERIOD"]
[336761970,1725119242126,-500.0,0.00032876,31]
[336761971,1725119242149,-500.0,0.00032876,31]
[336761972,1725119242175,-500.0,0.00032876,31]
[336761973,1725119242197,-500.94050722,0.00032876,31]
[336761974,1725119242219,-500.0,0.00032876,31]
[336761975,1725119242242,-500.0,0.00032876,31]
[336761976,1725119242264,-500.61524814,0.00032876,31]
[336761977,1725119242287,-500.0,0.00032876,31]
[336761978,1725119242313,-500.0,0.00032876,31]
[336761979,1725119242336,-501.75641076,0.00032876,31]
[336761980,1725119242358,-500.0,0.00032876,31]
[336761981,1725119242381,-500.0,0.00032876,31]
[336761982,1725119242405,-500.0,0.00032876,31]
[336761983,1725119242429,-500.0,0.00032876,31]
[336761984,1725119242452,-500.0,0.00032876,31]
[336761985,1725119242475,-500.62705185,0.00032876,31]
[336761986,1725119242498,-500.0,0.00032876,31]
[336761987,1725119242522,-500.0,0.00032876,31]
[336761988,1725119242545,-498.06877309,0.00032876,31]
[336761989,1725119242568,-500.0,0.00032876,31]
[336761990,1725119242590,-500.0,0.00032876,31]
[336761991,1725119242614,-500.0,0.00032876,31]
[336761992,1725119242636,-192.60476036,0.00032876,31]
[336761993,1725119242661,-271.98536857,0.00032876,31]
[336761994,1725119242684,-500.0,0.00032876,31]
[336761995,1725119242706,-500.0,0.00032876,31]
[336761996,1725119242729,-500.0,0.00032876,31]
[336761997,1725119242752,-500.81284817,0.00032876,31]
[336761998,1725119242775,-500.0,0.00032876,31]
[336761999,1725119242798,-500.0,0.00032876,30]
[336762000,1725119242820,-500.0,0.00032876,31]
[336762001,1725119242842,-500.0,0.00032876,31]
[336762002,1725119242866,-500.0,0.00032876,31]
[336762003,1725119242891,-500.0,0.00032876,31]
[336762004,1725119242916,-500.0,0.00032876,31]
[336762005,1725119242940,-500.0,0.00032876,31]
[336762006,1725119242967,-500.0,0.00032876,31]
[336762007,1725119242989,-479.94940491,0.00032876,31]
[336762008,1725119243014,-500.0,0.00032876,31]
[336762009,1725119243040,-500.0,0.00032876,31]
[336762010,1725119243063,-500.0,0.00032876,31]
[336762011,1725119243085,-500.0,0.00032876,31]
[336762012,1725119243107,-500.0,0.00032876,31]
[336762013,1725119243130,-510.80994995,0.00032876,31]
[336762014,1725119243153,-1164.66,0.00032876,31]
[336762015,1725119243174,-500.0,0.00032876,31]
[336762016,1725119243315,-500.0,0.00032876,31]
[336762017,1725119243340,-500.0,0.00032876,31]
[336762018,1725119243362,-500.0,0.00032876,31]
[336762019,1725119243384,-266.82711275,0.00032876,31]
[336762020,1725119243405,-500.0,0.00032876,31]
[336762021,1725119243427,-500.0,0.00032876,31]
[336762022,1725119243447,-500.0,0.00032876,31]
[336762023,1725119243469,-500.0,0.00032876,31]
[336762024,1725119243491,-500.0,0.00032876,31]
[336762025,1725119243512,-500.0,0.00032876,31]
[336762026,1725119243536,-161.32264515,0.00032876,31]
[336762027,1725119243557,-500.0,0.00032876,31]
[336762028,1725119243580,-500.0,0.00032876,31]
[336762029,1725119243603,-500.0,0.00032876,31]
[336762030,1725119243625,-820.83,0.00032876,31]
[336762031,1725119243648,-820.83,0.00032876,31]
[336762032,1725119243670,-820.83,0.00032876,31]
[336762033,1725119243692,-820.83,0.00032876,31]
[336762034,1725119243715,-820.83,0.00032876,31]
[336762035,1725119243738,-820.83,0.00032876,31]
[336762036,1725119243761,-820.83,0.00032876,31]
[336762037,1725119243784,-820.83,0.00032876,31]
[336762038,1725119243807,-820.83,0.00032876,31]
[336762039,1725119243830,-820.83,0.00032876,31]
[336762040,1725119243854,-820.83,0.00032876,31]
[336762041,1725119243877,-820.83,0.00032876,31]
[336762042,1725119243900,-820.83,0.00032876,31]
[336762043,1725119243921,-820.83,0.00032876,31]
[336762044,1725119243943,-820.83,0.00032876,31]
[336762045,1725119243976,-820.83,0.00032876,31]
[336762046,1725119244002,-500.0,0.00032876,31]
[336762047,1725119244025,-500.0,0.00032876,31]
[336762048,1725119244047,-820.83,0.00032876,31]
[336762049,1725119244070,-820.83,0.00032876,31]
[336762050,1725119244093,-820.83,0.00032876,31]
[336762051,1725119244115,-820.83,0.00032876,31]
[336762052,1725119244137,-820.83,0.00032876,31]
[336762053,1725119244166,-820.83,0.00032876,31]
[336762054,1725119244193,-820.83,0.00032876,31]
[336762055,1725119244215,-820.89853208,0.00032876,31]
[336762056,1725119244238,-500.0,0.00032876,31]
[336762057,1725119244260,-527.07938986,0.00032876,31]
[336762058,1725119244281,-500.0,0.00032876,31]
[336762059,1725119244303,-500.0,0.00032876,31]
[336762060,1725119244325,-466.37735617,0.00032876,31]
[336762061,1725119244346,-500.0,0.00032876,31]
[336762062,1725119244368,-500.0,0.00032876,31]
[336762063,1725119244389,-500.0,0.00032876,31]
[336762064,1725119244411,-500.0,0.00032876,31]
[336762065,1725119244433,-500.0,0.00032876,31]
[336762066,1725119244456,-500.0,0.00032876,31]
[336762067,1725119244479,-500.0,0.00032876,31]
[336762068,1725119244501,-500.0,0.00032876,31]
[336762069,1725119244524,-500.0,0.00032876,31]
[336762070,1725119244548,-500.0,0.00032876,31]
[336762071,1725119244572,-500.0,0.00032876,31]
[336762072,1725119244595,-500.0,0.00032876,31]
[336762073,1725119244618,-500.0,0.00032876,31]
[336762074,1725119244642,-500.0,0.00032876,31]
[336762075,1725119244666,-500.0,0.00032876,31]
[336762076,1725119244688,-500.0,0.00032876,31]
[336762077,1725119244711,-500.0,0.00032876,31]
[336762078,1725119244742,-500.0,0.00032876,31]
[336762079,1725119244764,-500.0,0.00032876,31]
[336762080,1725119244788,-500.0,0.00032876,31]
[336762081,1725119244811,-500.0,0.00032876,31]
[336762082,1725119244834,-500.0,0.00032876,31]
[336762083,1725119244857,-500.0,0.00032876,31]
[336762084,1725119244881,-500.0,0.00032876,31]
[336762085,1725119244904,-500.0,0.00032876,31]
[336762086,1725119244927,-637.4705352,0.00032876,31]
[336762087,1725119244949,-500.0,0.00032876,31]
[336762088,1725119244981,-500.0,0.00032876,31]
[336762089,1725119245005,-543.36954664,0.00032876,31]
[336762090,1725119245029,-500.0,0.00032876,31]
[336762091,1725119245053,-500.0,0.00032876,31]
[336762092,1725119245076,-500.0,0.00032876,31]
[336762093,1725119245099,-500.0,0.00032876,31]
[336762094,1725119245122,-500.0,0.00032876,31]
[336762095,1725119245249,-507.21377541,0.00032876,31]
[336762096,1725119245274,-500.0,0.00032876,31]
[336762097,1725119245297,-500.0,0.00032876,31]
[336762098,1725119245320,-207.36376966,0.00032876,31]
[336762099,1725119245344,-500.0,0.00032876,31]
[336762100,1725119245366,-500.0,0.00032876,31]
[336762101,1725119245388,-500.20719347,0.00032876,31]
[336762102,1725119245410,-500.0,0.00032876,31]
[336762103,1725119245432,-500.0,0.00032876,31]
[336762104,1725119245454,-500.0,0.00032876,31]
[336762105,1725119245478,-500.0,0.00032876,31]
[336762106,1725119245501,-500.70089688,0.00032876,31]
[336762107,1725119245527,-500.0,0.00032876,31]
[336762108,1725119245551,-500.0,0.00032876,31]
[336762109,1725119245573,-500.0,0.00032876,31]
[336762110,1725119245595,-500.0,0.00032876,31]
[336762111,1725119245617,-560.36,0.00032876,31]
[336762112,1725119245643,-500.0,0.00032876,31]
[336762113,1725119245664,-500.0,0.00032876,31]
[336762114,1725119245686,-500.0,0.00032876,31]
[336762115,1725119245708,-500.0,0.00032876,31]
[336762116,1725119245732,-500.0,0.00032876,31]
[336762117,1725119245754,-509.63701423,0.00032876,31]
[336762118,1725119245776,-500.0,0.00032876,31]
[336762119,1725119245798,-500.0,0.00032876,31]
[336762120,1725119245820,-500.0,0.00032876,31]
[336762121,1725119245842,-502.07364572,0.00032876,31]
[336762122,1725119245864,-412.33600007,0.00032876,31]
[336762123,1725119245886,-986.97,0.00032876,31]
[336762124,1725119245908,-500.0,0.00032876,31]
[336762125,1725119245930,-594.52131476,0.00032876,31]
[336762126,1725119245951,-500.0,0.00032876,31]
[336762127,1725119245979,-500.0,0.00032876,31]
[336762128,1725119246003,-991.09,0.00032876,31]
[336762129,1725119246025,-505.5288823,0.00032876,31]
[336762130,1725119246048,-500.0,0.00032876,31]
[336762131,1725119246069,-500.0,0.00032876,31]
[336762132,1725119246091,-500.0,0.00032876,31]
[336762133,1725119246112,-500.0,0.00032876,31]
[336762134,1725119246133,-502.03749329,0.00032876,31]
[336762135,1725119246154,-500.0,0.00032876,31]
[336762136,1725119246176,-419.63960164,0.00032876,31]
[336762137,1725119246198,-501.38024526,0.00032876,31]
[336762138,1725119246222,-500.0,0.00032876,31]
[336762139,1725119246242,-500.0,0.00032876,31]
[336762140,1725119246263,-323.31193471,0.00032876,31]
[336762141,1725119246285,-497.08654559,0.00032876,31]
[336762142,1725119246306,-500.0,0.00032876,31]
[336762143,1725119246328,-500.0,0.00032876,31]
[336762144,1725119246350,-500.0,0.00032876,31]
[336762145,1725119246372,-500.0,0.00032876,31]
[336762146,1725119246393,-500.0,0.00032876,31]
[336762147,1725119246415,-500.81977298,0.00032876,31]
[336762148,1725119246437,-507.37230839,0.00032876,31]
[336762149,1725119246458,-500.83261335,0.00032876,31]
[336762150,1725119246483,-200.7809759,0.00032876,31]
[336762151,1725119246504,-509.43080241,0.00032876,31]
[336762152,1725119246525,-503.22035838,0.00032876,31]
[336762153,1725119246547,-500.0,0.00032876,31]
[336762154,1725119246568,-500.0,0.00032876,31]
[336762155,1725119246589,-500.0,0.00032876,31]
[336762156,1725119246611,-500.0,0.00032876,31]
[336762157,1725119246633,-500.0,0.00032876,31]
[336762158,1725119246656,-500.0,0.00032876,31]
[336762159,1725119246679,-500.0,0.00032876,31]
[336762160,1725119246700,-500.0,0.00032876,31]
[336762161,1725119246723,-500.0,0.00032876,31]
[336762162,1725119246744,-500.0,0.00032876,31]
[336762163,1725119246766,-503.20037252,0.00032876,31]
[336762164,1725119246788,-500.0,0.00032876,31]
[336762165,1725119246809,-1073.95,0.00032876,31]
[336762166,1725119246834,-1045.68,0.00032876,31]
[336762167,1725119246859,-1045.68,0.00032876,31]
[336762168,1725119246881,-1045.68,0.00032876,31]
[336762169,1725119246903,-1045.68,0.00032876,31]
[336762170,1725119246932,-500.0,0.00032876,31]
[336762171,1725119247078,-1045.68,0.00032876,31]
[336762172,1725119247101,-505.22337956,0.00032876,31]
[336762173,1725119247124,-1045.68,0.00032876,31]
[336762174,1725119247146,-1045.68,0.00032876,31]
[336762175,1725119247169,-1045.68,0.00032876,31]
[336762176,1725119247190,-1045.68,0.00032876,31]
[336762177,1725119247215,-500.0,0.00032876,31]
[336762178,1725119247241,-1045.68,0.00032876,31]
[336762179,1725119247264,-1045.68,0.00032876,31]
[336762180,1725119247286,-1045.68,0.00032876,31]
[336762181,1725119247308,-500.0,0.00032876,31]
[336762182,1725119247332,-1045.68,0.00032876,31]
[336762183,1725119247355,-1045.68,0.00032876,31]
[336762184,1725119247376,-1045.68,0.00032876,31]
[336762185,1725119247401,-1045.68,0.00032876,31]
[336762186,1725119247425,-1045.68,0.00032876,31]
[336762187,1725119247448,-1045.68,0.00032876,31]
[336762188,1725119247480,-1045.68,0.00032876,31]
[336762189,1725119247503,-1045.68,0.00032876,31]
[336762190,1725119247526,-1045.68,0.00032876,31]
[336762191,1725119247548,-1045.68,0.00032876,31]
[336762192,1725119247573,-1045.68,0.00032876,31]
[336762193,1725119247595,-1045.74134172,0.00032876,31]
[336762194,1725119247617,-500.0,0.00032876,31]
[336762195,1725119247640,-502.04827934,0.00032876,31]
[336762196,1725119247666,-500.0,0.00032876,31]
[336762197,1725119247688,-500.0,0.00032876,31]
[336762198,1725119247713,-930.45,0.00032876,31]
[336762199,1725119247735,-321.7141065,0.00032876,31]
[336762200,1725119247756,-1054.71,0.00032876,31]
[336762201,1725119247778,-500.0,0.00032876,31]
[336762202,1725119247799,-500.0,0.00032876,31]
[336762203,1725119247822,-500.0,0.00032876,31]
[336762204,1725119247844,-500.0,0.00032876,31]
[336762205,1725119247866,-786.33,0.00032876,31]
[336762206,1725119247888,-2174.95,0.00032876,31]
[336762207,1725119247910,-500.0,0.00032876,31]
[336762208,1725119247933,-500.0,0.00032876,31]
[336762209,1725119247959,-500.0,0.00032876,31]
[336762210,1725119247982,-501.39781411,0.00032876,31]
[336762211,1725119248005,-500.0,0.00032876,31]
[336762212,1725119248028,-500.0,0.00032876,31]
[336762213,1725119248055,-500.0,0.00032876,31]
[336762214,1725119248078,-500.0,0.00032876,31]
[336762215,1725119248101,-500.0,0.00032876,31]
[336762216,1725119248122,-764.44,0.00032876,31]
[336762217,1725119248144,-500.0,0.00032876,31]
[336762218,1725119248165,-501.46295446,0.00032876,31]
[336762219,1725119248187,-500.0,0.00032876,31]
[336762220,1725119248208,-500.0,0.00032876,31]
[336762221,1725119248231,-504.22333173,0.00032876,31]
[336762222,1725119248252,-500.0,0.00032876,31]
[336762223,1725119248274,-500.0,0.00032876,31]
[336762224,1725119248295,-500.0,0.00032876,31]
[336762225,1725119248317,-500.0,0.00032876,31]
[336762226,1725119248338,-500.0,0.00032876,31]
[336762227,1725119248360,-500.0,0.00032876,31]
[336762228,1725119248382,-496.60339771,0.00032876,31]
[336762229,1725119248404,-500.0,0.00032876,31]
[336762230,1725119248426,-500.0,0.00032876,31]
[336762231,1725119248451,-286.24965818,0.00032876,31]
[336762232,1725119248474,-500.0,0.00032876,31]
[336762233,1725119248497,-500.0,0.00032876,31]
[336762234,1725119248518,-590.23402777,0.00032876,31]
[336762235,1725119248543,-565.96857752,0.00032876,31]
[336762236,1725119248566,-500.0,0.00032876,31]
[336762237,1725119248592,-500.0,0.00032876,31]
[336762238,1725119248615,-500.0,0.00032876,31]
[336762239,1725119248637,-500.0,0.00032876,31]
[336762240,1725119248660,-500.0,0.00032876,31]
[336762241,1725119248682,-500.0,0.00032876,31]
[336762242,1725119248704,-357.3338708,0.00032876,31]
[336762243,1725119248726,-500.0,0.00032876,31]
[336762244,1725119248854,-500.0,0.00032876,31]
[336762245,1725119248878,-500.0,0.00032876,31]
[336762246,1725119248900,-505.34196076,0.00032876,31]
[336762247,1725119248921,-500.0,0.00032876,31]
[336762248,1725119248944,-500.0,0.00032876,31]
[336762249,1725119248971,-501.89802376,0.00032876,31]
[336762250,1725119248994,-500.0,0.00032876,31]
[336762251,1725119249019,-500.0,0.00032876,31]
[336762252,1725119249046,-500.0,0.00032876,31]
[336762253,1725119249068,-290.04,0.00032876,31]
[336762254,1725119249091,-500.0,0.00032876,31]
[336762255,1725119249113,-976.03,0.00032876,31]
[336762256,1725119249136,-500.0,0.00032876,31]
[336762257,1725119249157,-505.52441793,0.00032876,31]
[336762258,1725119249179,-500.0,0.00032876,31]
[336762259,1725119249203,-500.0,0.00032876,31]
[336762260,1725119249226,-1491.74,0.00032876,31]
[336762261,1725119249247,-500.0,0.00032876,31]
[336762262,1725119249270,-661.37,0.00032876,31]
[336762263,1725119249292,-502.18213769,0.00032876,31]
[336762264,1725119249314,-500.0,0.00032876,31]
[336762265,1725119249336,-500.0,0.00032876,31]
[336762266,1725119249358,-500.0,0.00032876,31]
[336762267,1725119249380,-1027.6,0.00032876,31]
[336762268,1725119249404,-500.0,0.00032876,31]
[336762269,1725119249427,-1000.0,0.00032876,31]
[336762270,1725119249450,-500.0,0.00032876,31]
[336762271,1725119249473,-500.0,0.00032876,31]
[336762272,1725119249495,-541.38759532,0.00032876,31]
[336762273,1725119249517,-500.0,0.00032876,31]
[336762274,1725119249541,-500.0,0.00032876,31]
[336762275,1725119249564,-501.18379124,0.00032876,31]
[336762276,1725119249587,-3983.59,0.00032876,31]
[336762277,1725119249610,-500.0,0.00032876,31]
[336762278,1725119249632,-165.05699094,0.00032876,31]
[336762279,1725119249656,-500.0,0.00032876,31]
[336762280,1725119249679,-1127.7,0.00032876,31]
[336762281,1725119249704,-500.0,0.00032876,31]
[336762282,1725119249728,-500.0,0.00032876,31]
[336762283,1725119249754,-500.0,0.00032876,31]
[336762284,1725119249777,-500.0,0.00032876,31]
[336762285,1725119249800,-500.0,0.00032876,31]
[336762286,1725119249823,-331.9978143,0.00032876,31]
[336762287,1725119249847,-500.0,0.00032876,31]
[336762288,1725119249870,-500.0,0.00032876,31]
[336762289,1725119249893,-500.0,0.00032876,31]
[336762290,1725119249915,-501.75153871,0.00032876,31]
[336762291,1725119249939,-500.0,0.00032876,31]
[336762292,1725119249965,-500.0,0.00032876,31]
[336762293,1725119249988,-500.0,0.00032876,31]
[336762294,1725119250013,-500.0,0.00032876,31]
[336762295,1725119250037,-500.0,0.00032876,31]
[336762296,1725119250062,-505.6351496,0.00032876,31]
[336762297,1725119250084,-502.95744415,0.00032876,31]
[336762298,1725119250107,-500.0,0.00032876,31]
[336762299,1725119250132,-500.0,0.00032876,31]
[336762300,1725119250155,-500.0,0.00032876,31]
[336762301,1725119250178,-500.0,0.00032876,31]
[336762302,1725119250201,-500.0,0.00032876,31]
[336762303,1725119250225,-500.0,0.00032876,31]
[336762304,1725119250248,-500.0,0.00032876,31]
[336762305,1725119250270,-500.0,0.00032876,31]
[336762306,1725119250294,-240.08271172,0.00032876,31]
[336762307,1725119250317,-500.0,0.00032876,31]
[336762308,1725119250340,-500.0,0.00032876,31]
[336762309,1725119250363,-925.53,0.00032876,31]
[336762310,1725119250385,-387.07811982,0.00032876,31]
[336762311,1725119250408,-131.97561376,0.00032876,31]
[336762312,1725119251385,-757.16424831,0.000252,2]
[336762313,1725119251406,-162.0,0.0002589,2]
[336762314,1725119251427,-241.089157,0.00026073,2]
[336762315,1725119251451,-2125.715109,0.00026886,2]
[336762316,1725119251474,-167.9790695,0.000279,2]
[336762317,1725119251496,-300.0,0.00028048,2]
[336762318,1725119251521,-300.0,0.00028048,2]
[336762319,1725119251543,-24900.0,0.00028049,2]
[336762320,1725119251565,-420.0,0.0003029,2]
[336762321,1725119251586,-420.0,0.00030853,2]
[336762322,1725119251608,-3644.0,0.00031095,2]
[336762323,1725119251630,-2107.3727692,0.00031122,2]
[336762324,1725119251652,-2107.37276919,0.0003152,2]
[336762325,1725119251675,-371.584812,0.00031781,2]
[336762326,1725119251697,-2107.37276919,0.00031917,2]
[336762327,1725119251722,-2107.37276919,0.00032315,2]
[336762328,1725119251745,-207.8914059,0.00032356,2]
[336762329,1725119251767,-207.8914059,0.00032356,2]
[336762330,1725119251792,-207.5221421,0.00032356,2]
[336762331,1725119251962,-150.30127527,0.00032368,2]
[336762332,1725119251985,-500.0,0.00032672,7]
[336762333,1725119252007,-700.0,0.00032709,7]
[336762334,1725119252031,-587.0,0.00032712,2]
[336762335,1725119252056,-2107.37276919,0.00032713,2]
[336762336,1725119252078,-4487.32490398,0.00032719,2]
[336762337,1725119252100,-9676.09527435,0.00032776,5]
[336762338,1725119252121,-2000.0,0.00032776,2]
[336762339,1725119252142,-600.0,0.00032787,7]
[336762340,1725119252164,-700.0,0.00032789,7]
[336762341,1725119252185,-500.0,0.00032791,7]
[336762342,1725119252207,-151.68,0.00032856,3]
[336762343,1725119252229,-758.42,0.00032856,3]
[336762344,1725119252252,-154944.431327,0.00032866,4]
[336762345,1725119252273,-482.13559962,0.00032875,2]
[336762346,1725119252296,-500.0,0.00032875,2]
[336762347,1725119252317,-183.55766255,0.00032875,2]
[336762348,1725119252338,-500.0,0.00032876,2]
[336762349,1725119252359,-1000.0,0.00032876,2]
[336762350,1725119252380,-500.0,0.00032876,7]
[336762351,1725119252402,-151.0,0.00032876,7]
[336762352,1725119252424,-151.0,0.00032876,7]
[336762353,1725119252445,-151.0,0.00032876,7]
[336762354,1725119252468,-154.20014,0.00032876,7]
[336762355,1725119252493,-207.16456997,0.00032876,7]
[336762356,1725119252515,-500.0,0.00032876,14]
[336762357,1725119252539,-1012.86,0.00032876,7]
[336762358,1725119252561,-500.65348676,0.00032876,7]
[336762359,1725119252583,-500.0,0.00032876,2]
[336762360,1725119252604,-151.0,0.00032876,7]
[336762361,1725119252626,-151.0,0.00032876,7]
[336762362,1725119252649,-151.0,0.00032876,7]
[336762363,1725119252672,-151.0,0.00032876,7]
[336762364,1725119252694,-268.44357485,0.00032876,7]
[336762365,1725119252715,-180.128742,0.00032876,7]
[336762366,1725119252737,-180.128742,0.00032876,7]
[336762367,1725119252759,-180.128742,0.00032876,7]
[336762368,1725119252781,-180.128742,0.00032876,7]
[336762369,1725119252802,-180.128742,0.00032876,7]
[336762370,1725119252824,-180.128742,0.00032876,7]
[336762371,1725119252845,-204.587279,0.00032876,7]
[336762372,1725119252866,-204.587279,0.00032876,7]
[336762373,1725119252887,-204.587279,0.00032876,7]
[336762374,1725119252908,-204.587279,0.00032876,7]
[336762375,1725119252929,-204.587279,0.00032876,7]
[336762376,1725119252950,-204.587279,0.00032876,7]
[336762377,1725119252976,-204.587279,0.00032876,7]
[336762378,1725119252998,-204.587279,0.00032876,7]
[336762379,1725119253022,-204.587279,0.00032876,7]
[336762380,1725119253045,-204.587279,0.00032876,7]
[336762381,1725119253067,-204.587279,0.00032876,7]
[336762382,1725119253090,-204.587279,0.00032876,7]
[336762383,1725119253112,-204.587279,0.00032876,7]
[336762384,1725119253133,-204.587279,0.00032876,7]
[336762385,1725119253154,-500.0,0.00032876,2]
[336762386,1725119253175,-500.0,0.00032876,20]
[336762387,1725119253197,-151.0,0.00032876,7]
[336762388,1725119253219,-151.0,0.00032876,7]
[336762389,1725119253241,-151.0,0.00032876,7]
[336762390,1725119253263,-151.0,0.00032876,7]
[336762391,1725119253284,-151.0,0.00032876,7]
[336762392,1725119253306,-151.0,0.00032876,7]
[336762393,1725119253328,-151.0,0.00032876,7]
[336762394,1725119253350,-219.930134,0.00032876,7]
[336762395,1725119253372,-219.930134,0.00032876,7]
[336762396,1725119253394,-219.930134,0.00032876,7]
[336762397,1725119253415,-219.930134,0.00032876,7]
[336762398,1725119253437,-219.930134,0.00032876,7]
[336762399,1725119253460,-219.930134,0.00032876,7]
[336762400,1725119253586,-219.930134,0.00032876,7]
[336762401,1725119253609,-219.930134,0.00032876,7]
[336762402,1725119253631,-219.930134,0.00032876,7]
[336762403,1725119253655,-219.930134,0.00032876,7]
[336762404,1725119253678,-219.930134,0.00032876,7]
[336762405,1725119253702,-219.930134,0.00032876,7]
[336762406,1725119253726,-219.930134,0.00032876,7]
[336762407,1725119253749,-219.930134,0.00032876,7]
[336762408,1725119253771,-151.0,0.00032876,7]
[336762409,1725119253794,-215.116266,0.00032876,7]
[336762410,1725119253817,-151.0,0.00032876,7]
[336762411,1725119253840,-215.116266,0.00032876,7]
[336762412,1725119253864,-151.0,0.00032876,7]
[336762413,1725119253887,-215.116266,0.00032876,7]
[336762414,1725119253909,-151.0,0.00032876,7]
[336762415,1725119253932,-151.0,0.00032876,7]
[336762416,1725119253957,-151.0,0.00032876,7]
[336762417,1725119253982,-215.116266,0.00032876,7]
[336762418,1725119254011,-151.0,0.00032876,7]
[336762419,1725119254035,-215.116266,0.00032876,7]
[336762420,1725119254059,-215.116266,0.00032876,7]
[336762421,1725119254082,-215.116266,0.00032876,7]
[336762422,1725119254105,-215.116266,0.00032876,7]
[336762423,1725119254131,-151.0,0.00032876,7]
[336762424,1725119254155,-151.0,0.00032876,7]
[336762425,1725119254177,-151.0,0.00032876,7]
[336762426,1725119254200,-151.0,0.00032876,7]
[336762427,1725119254223,-182.197448,0.00032876,7]
[336762428,1725119254248,-215.116266,0.00032876,7]
[336762429,1725119254270,-215.116266,0.00032876,7]
[336762430,1725119254292,-215.116266,0.00032876,7]
[336762431,1725119254317,-215.116266,0.00032876,7]
[336762432,1725119254340,-215.116266,0.00032876,7]
[336762433,1725119254364,-215.116266,0.00032876,7]
[336762434,1725119254386,-215.116266,0.00032876,7]
[336762435,1725119254407,-215.116266,0.00032876,7]
[336762436,1725119254430,-258.068006,0.00032876,7]
[336762437,1725119254452,-500.0,0.00032876,2]
[336762438,1725119254475,-368.02438624,0.00032876,31]
[336762439,1725119254498,-500.0,0.00032876,31]
[336762440,1725119254520,-397.61451473,0.00032876,31]
[336762441,1725119254542,-526.17561516,0.00032876,31]
[336762442,1725119254564,-500.0,0.00032876,31]
[336762443,1725119254586,-503.73641349,0.00032876,31]
[336762444,1725119254607,-500.0,0.00032876,31]
[336762445,1725119254629,-501.60278994,0.00032876,31]
[336762446,1725119254650,-500.0,0.00032876,31]
[336762447,1725119254672,-637.99,0.00032876,31]
[336762448,1725119254693,-712.24,0.00032876,31]
[336762449,1725119254715,-1512.29,0.00032876,31]
[336762450,1725119254736,-261.87991071,0.00032876,31]
[336762451,1725119254757,-500.0,0.00032876,31]
[336762452,1725119254779,-548.78,0.00032876,31]
[336762453,1725119254800,-508.26,0.00032876,31]
[336762454,1725119254821,-508.26,0.00032876,31]
[336762455,1725119254843,-508.26,0.00032876,31]
[336762456,1725119254865,-508.26,0.00032876,31]
[336762457,1725119254887,-508.26,0.00032876,31]
[336762458,1725119254909,-1335.73,0.00032876,31]
[336762459,1725119254934,-500.0,0.00032876,31]
[336762460,1725119254961,-508.26,0.00032876,31]
[336762461,1725119254983,-508.26,0.00032876,31]
[336762462,1725119255006,-508.26,0.00032876,31]
[336762463,1725119255027,-508.26,0.00032876,31]
[336762464,1725119255052,-508.26,0.00032876,31]
[336762465,1725119255074,-508.26,0.00032876,31]
[336762466,1725119255198,-508.26,0.00032876,31]
[336762467,1725119255220,-508.26,0.00032876,31]
[336762468,1725119255243,-508.26,0.00032876,31]
[336762469,1725119255265,-508.26,0.00032876,31]